bitfinex/quotes_BTCUSD_20250118
["timestamp","ask_amount","ask_price","bid_price","bid_amount"]
[1737204830322,1.04689488,103530.0,103520.0,0.00089859]
[1737204830591,0.97633314,103530.0,103520.0,0.00089859]
[1737204831295,0.93330629,103530.0,103520.0,0.00089859]
[1737204832062,1.23608206,103530.0,103520.0,0.00089859]
[1737204834128,1.33608206,103530.0,103520.0,0.00089859]
[1737204834318,1.1062182,103530.0,103520.0,0.00089859]
[1737204836008,1.2062182,103530.0,103520.0,0.00089859]
[1737204836382,1.1062182,103530.0,103520.0,0.00089859]
[1737204836618,1.2062182,103530.0,103520.0,0.00089859]
[1737204836993,1.1062182,103530.0,103520.0,0.00089859]
[1737204837192,1.2062182,103530.0,103520.0,0.00089859]
[1737204837395,0.90697739,103530.0,103520.0,0.00089859]
[1737204837703,1.00697739,103530.0,103520.0,0.00089859]
[1737204838253,0.85697739,103530.0,103520.0,0.00089859]
[1737204838429,0.55420162,103530.0,103520.0,0.00089859]
[1737204839657,0.46771003,103530.0,103520.0,0.00089859]
[1737204840653,0.36771003,103530.0,103520.0,0.12049759]
[1737204840844,0.46771003,103530.0,103520.0,0.02389859]
[1737204841188,0.36771003,103530.0,103520.0,0.02389859]
[1737204842098,0.46771003,103530.0,103520.0,0.02389859]
[1737204845428,0.46771003,103530.0,103520.0,0.00089859]
[1737204846087,0.46695084,103530.0,103520.0,0.00089859]
[1737204846723,0.55344243,103530.0,103520.0,0.00089859]
[1737204849178,0.68320347,103530.0,103520.0,0.00089859]
[1737204850367,0.8388826,103530.0,103520.0,0.00089859]
[1737204850571,0.76832086,103530.0,103520.0,0.00089859]
[1737204850832,0.94133559,103530.0,103520.0,0.00089859]
[1737204850964,0.8562182,103530.0,103520.0,0.00089859]
[1737204851607,1.07257365,103530.0,103520.0,0.00089859]
[1737204852525,1.24313539,103530.0,103520.0,0.00089859]
[1737204852728,1.17257365,103530.0,103520.0,0.00089859]
[1737204854496,1.08608206,103530.0,103520.0,0.00089859]
[1737204859749,0.78330629,103530.0,103520.0,0.00089859]
[1737204862470,0.85386803,103530.0,103520.0,0.00089859]
[1737204863087,0.95310884,103530.0,103520.0,0.00089859]
[1737204863245,0.99613569,103530.0,103520.0,0.00089859]
[1737204863442,1.04613569,103530.0,103520.0,0.00089859]
[1737204864211,1.52689699,103530.0,103520.0,0.00089859]
[1737204865733,1.42765618,103530.0,103520.0,0.00089859]
[1737204867265,1.43393618,103530.0,103520.0,0.00089859]
[1737204868194,1.52925618,103530.0,103520.0,0.00089859]
[1737204868401,1.43393618,103530.0,103520.0,0.00089859]
[1737204870063,1.45343761,103530.0,103520.0,0.00089859]
[1737204879223,1.55267842,103530.0,103520.0,0.00089859]
[1737204879607,1.45343761,103530.0,103520.0,0.00089859]
[1737204884428,1.44715761,103530.0,103520.0,0.00089859]
[1737204884628,1.45343761,103530.0,103520.0,0.00089859]
[1737204886250,1.38287587,103530.0,103520.0,0.00089859]
[1737204889174,1.49280968,103530.0,103520.0,0.00089859]
[1737204889397,1.54639842,103530.0,103520.0,0.00089859]
[1737204891291,1.25442973,103530.0,103520.0,0.00089859]
[1737204895052,0.53448422,103520.0,103510.0,0.00064457]
[1737204895277,0.63372503,103520.0,103510.0,0.00064457]
[1737204895467,0.67222503,103520.0,103510.0,0.00064457]
[1737204896567,0.69390187,103520.0,103510.0,0.00064457]
[1737204897370,1.43479169,103520.0,103510.0,0.00064457]
[1737204897964,1.44107169,103520.0,103510.0,0.00064457]
[1737204899093,1.48797169,103520.0,103510.0,0.00064457]
[1737204900333,1.19525678,103520.0,103510.0,0.00064457]
[1737204900851,1.20486312,103520.0,103510.0,0.00064457]
[1737204901283,1.18318628,103520.0,103510.0,0.00064457]
[1737204901490,1.06008628,103520.0,103510.0,0.00064457]
[1737204902631,1.13628628,103520.0,103510.0,0.00064457]
[1737204903500,1.68881265,103520.0,103510.0,0.00064457]
[1737204904334,1.39030024,103520.0,103510.0,0.00064457]
[1737204904726,1.42880024,103520.0,103510.0,0.00064457]
[1737204905406,0.98062533,103520.0,103510.0,0.00064457]
[1737204906846,1.42880024,103520.0,103510.0,0.00064457]
[1737204907180,1.35260024,103520.0,103510.0,0.00064457]
[1737204907790,1.61251818,103520.0,103510.0,0.00064457]
[1737204908667,0.87182931,103520.0,103510.0,0.00064457]
[1737204910120,0.86554931,103520.0,103510.0,0.00064457]
[1737204911390,0.96554931,103520.0,103510.0,0.00064457]
[1737204911617,0.86554931,103520.0,103510.0,0.00064457]
[1737204912197,0.89340614,103520.0,103510.0,0.00064457]
[1737204914557,0.89383414,103520.0,103510.0,0.00064457]
[1737204915759,0.86597731,103520.0,103510.0,0.00064457]
[1737204920511,0.94477731,103520.0,103510.0,0.00064457]
[1737204920710,0.86597731,103520.0,103510.0,0.00064457]
[1737204921469,0.82747731,103520.0,103510.0,0.00064457]
[1737204924259,1.11999127,103520.0,103510.0,0.00064457]
[1737204924582,1.29803208,103520.0,103510.0,0.00064457]
[1737204927343,1.19879127,103520.0,103510.0,0.00064457]
[1737204928108,1.11999127,103520.0,103510.0,0.00064457]
[1737204928826,1.21999127,103520.0,103510.0,0.00064457]
[1737204929036,1.11999127,103520.0,103510.0,0.00064457]
[1737204929370,1.56782772,103520.0,103510.0,0.00064457]
[1737204930165,1.57406772,103520.0,103510.0,0.00064457]
[1737204930783,1.41339059,103520.0,103510.0,0.00064457]
[1737204932418,1.31414978,103520.0,103510.0,0.00064457]
[1737204932741,1.24358804,103520.0,103510.0,0.00064457]
[1737204933042,1.23734804,103520.0,103510.0,0.00064457]
[1737204934760,1.30790978,103520.0,103510.0,0.00064457]
[1737204935108,1.23734804,103520.0,103510.0,0.00064457]
[1737204935529,1.30790978,103520.0,103510.0,0.00064457]
[1737204942970,1.37961145,103520.0,103510.0,0.00064457]
[1737204945708,1.38585145,103520.0,103510.0,0.00064457]
[1737204955975,1.37961145,103520.0,103510.0,0.00064457]
[1737204956212,1.38585145,103520.0,103510.0,0.00064457]
[1737204956838,1.31414978,103520.0,103510.0,0.00064457]
[1737204960221,0.83737741,103520.0,103510.0,0.08384457]
[1737204960427,1.24906263,103520.0,103510.0,0.08384457]
[1737204961272,1.24830344,103520.0,103510.0,0.00064457]
[1737204961499,1.48100344,103520.0,103510.0,0.00064457]
[1737204961696,1.10001828,103520.0,103510.0,0.00064457]
[1737204961905,1.00077747,103520.0,103510.0,0.00064457]
[1737204963179,1.03316699,103520.0,103510.0,0.00064457]
[1737204963921,0.93316699,103520.0,103510.0,0.00064457]
[1737204964127,0.98096699,103520.0,103510.0,0.00064457]
[1737204964340,1.528169,103520.0,103510.0,0.00064457]
[1737204965435,1.23565504,103520.0,103510.0,0.00064457]
[1737204966221,1.66022866,103520.0,103510.0,0.00064457]
[1737204968865,1.23565504,103520.0,103510.0,0.00064457]
[1737204969064,1.13641423,103520.0,103510.0,0.00064457]
[1737204972893,1.13513426,103520.0,103510.0,0.00064457]
[1737204974188,0.246618,103500.0,103490.0,0.00089838]
[1737204974398,0.55754403,103500.0,103490.0,0.00089838]
[1737204974606,0.59604403,103500.0,103490.0,0.00089838]
[1737204976151,0.85568042,103500.0,103490.0,0.00089838]
[1737204980330,0.87480809,103500.0,103490.0,0.00089838]
[1737204981147,0.88469121,103500.0,103490.0,0.00089838]
[1737204982253,0.98469121,103500.0,103490.0,0.00089838]
[1737204982635,0.88469121,103500.0,103490.0,0.00089838]
[1737204982815,0.84153758,103500.0,103490.0,0.00089838]
[1737204987362,0.94153758,103500.0,103490.0,0.00089838]
[1737204988146,1.01473965,103500.0,103490.0,0.00089838]
[1737204988348,1.11473965,103500.0,103490.0,0.00089838]
[1737204988767,1.11473965,103500.0,103490.0,0.08029838]
[1737204988768,0.67480283,103500.0,103490.0,0.08029838]
[1737204988970,0.77742631,103500.0,103490.0,0.08029838]
[1737204989169,0.77742631,103500.0,103490.0,0.12589838]
[1737204989413,0.77690885,103500.0,103490.0,0.12589838]
[1737204990242,0.62742631,103500.0,103490.0,0.22252538]
[1737204990452,0.62742631,103500.0,103490.0,0.12589838]
[1737204991240,0.84400667,103500.0,103490.0,0.12589838]
[1737204992788,0.62752391,103500.0,103490.0,0.12589838]
[1737204993678,0.53090591,103500.0,103490.0,0.12589838]
[1737204993850,0.62752391,103500.0,103490.0,0.12589838]
[1737204996655,0.62795191,103500.0,103490.0,0.12589838]
[1737205002051,0.48682843,103500.0,103490.0,0.12589838]
[1737205002255,0.56077217,103500.0,103490.0,0.12589838]
[1737205002470,0.46077217,103500.0,103490.0,0.22513919]
[1737205003074,0.25762188,103500.0,103490.0,0.22513919]
[1737205004439,0.17098974,103500.0,103490.0,0.22513919]
[1737205006781,0.07098974,103500.0,103490.0,0.22513919]
[1737205007101,0.17098974,103500.0,103490.0,0.22513919]
[1737205007789,0.27098974,103500.0,103490.0,0.32176619]
[1737205008285,0.200428,103500.0,103490.0,0.32176619]
[1737205008534,0.27098974,103500.0,103490.0,0.32176619]
[1737205008767,0.27098974,103500.0,103490.0,0.22513919]
[1737205009750,0.27098974,103500.0,103490.0,0.32176619]
[1737205011384,0.27098974,103500.0,103490.0,0.30906619]
[1737205015996,0.27098974,103500.0,103490.0,0.21243919]
[1737205017413,0.27098974,103500.0,103490.0,0.30906619]
[1737205018105,0.27098974,103500.0,103490.0,0.21243919]
[1737205018583,0.33816948,103500.0,103490.0,0.06759838]
[1737205018814,0.53141348,103500.0,103480.0,0.08099859]
[1737205018989,0.07056174,103490.0,103480.0,0.1802394]
[1737205020116,0.07065922,103490.0,103480.0,0.1802394]
[1737205020905,0.07065922,103490.0,103480.0,0.2768764]
[1737205021725,0.17065922,103490.0,103480.0,0.2768764]
[1737205022375,9.748e-05,103490.0,103480.0,0.2768764]
[1737205022893,9.748e-05,103490.0,103480.0,0.3449764]
[1737205023036,0.10009748,103490.0,103480.0,0.3449764]
[1737205023242,9.748e-05,103490.0,103480.0,0.3449764]
[1737205023865,0.10009748,103490.0,103480.0,0.3449764]
[1737205032043,0.10052558,103490.0,103480.0,0.3449764]
[1737205037049,0.10052558,103490.0,103480.0,0.43171011]
[1737205038444,0.17108732,103490.0,103480.0,0.43171011]
[1737205038575,0.17108732,103490.0,103480.0,0.28351011]
[1737205038783,0.25288732,103490.0,103480.0,0.18687311]
[1737205039194,0.34951432,103490.0,103480.0,0.18687311]
[1737205039567,0.34951432,103490.0,103480.0,0.0876323]
[1737205039868,0.34951432,103490.0,103480.0,0.00089859]
[1737205041172,0.73929675,103490.0,103480.0,0.00089859]
[1737205042374,0.80985849,103490.0,103480.0,0.00089859]
[1737205042577,0.85535849,103490.0,103480.0,0.00089859]
[1737205042794,0.68479675,103490.0,103480.0,0.00089859]
[1737205043219,0.75535849,103490.0,103480.0,0.00089859]
[1737205044413,0.68479675,103490.0,103480.0,0.00089859]
[1737205045245,0.75535849,103490.0,103480.0,0.00089859]
[1737205046451,0.68479675,103490.0,103480.0,0.00089859]
[1737205047272,0.63929675,103490.0,103480.0,0.00089859]
[1737205050429,0.46609468,103490.0,103480.0,0.00089859]
[1737205059110,0.33614646,103490.0,103480.0,0.00089859]
[1737205060408,0.24951432,103490.0,103480.0,0.00089859]
[1737205067593,0.33614646,103490.0,103480.0,0.00089859]
[1737205069044,0.24951432,103490.0,103480.0,0.00089859]
[1737205070155,0.33614646,103490.0,103480.0,0.00089859]
[1737205074100,0.46609468,103490.0,103480.0,0.00089859]
[1737205077113,0.56609468,103490.0,103480.0,0.00089859]
[1737205077322,0.46609468,103490.0,103480.0,0.00089859]
[1737205080344,0.63929675,103490.0,103480.0,0.00089859]
[1737205085838,0.65898476,103490.0,103480.0,0.00034178]
[1737205086244,0.87546752,103490.0,103480.0,0.00034178]
[1737205086424,0.85577951,103490.0,103480.0,0.00034178]
[1737205086621,0.92634125,103490.0,103480.0,0.00034178]
[1737205087559,0.83970911,103490.0,103480.0,0.00034178]
[1737205089121,0.70976089,103490.0,103480.0,0.00034178]
[1737205091139,0.71951295,103490.0,103480.0,0.00034178]
[1737205106236,0.80594727,103490.0,103480.0,0.00034178]
[1737205107595,0.58946451,103490.0,103480.0,0.00034178]
[1737205110123,0.80630813,103490.0,103480.0,0.00034178]
[1737205112139,0.73574639,103490.0,103480.0,0.00034178]
[1737205114055,0.72599433,103490.0,103480.0,0.00034178]
[1737205115055,0.63980171,103490.0,103480.0,0.00034178]
[1737205115289,0.55800171,103490.0,103480.0,0.00034178]
[1737205115664,0.55800171,103490.0,103480.0,0.07984178]
[1737205115868,0.55800171,103490.0,103480.0,0.00034178]
[1737205115869,0.62856345,103490.0,103480.0,0.00034178]
[1737205116021,0.70436345,103490.0,103480.0,0.00034178]
[1737205116251,0.83445134,103490.0,103480.0,0.00034178]
[1737205117522,0.53091968,103490.0,103480.0,0.00034178]
[1737205119057,0.53072413,103490.0,103480.0,0.00034178]
[1737205120218,0.5735169,103490.0,103480.0,0.00034178]
[1737205121834,0.6735169,103490.0,103480.0,0.00034178]
[1737205122808,0.89030105,103490.0,103480.0,0.00034178]
[1737205127828,0.90973274,103490.0,103480.0,0.00034178]
[1737205128574,0.69294859,103490.0,103480.0,0.00034178]
[1737205135060,0.99996788,103490.0,103480.0,7.8e-07]
[1737205135256,0.328537,103480.0,103470.0,0.00089859]
[1737205135510,0.72034005,103480.0,103470.0,0.00089859]
[1737205135712,0.89334005,103480.0,103470.0,5.9e-07]
[1737205135955,0.79334005,103480.0,103470.0,5.9e-07]
[1737205136130,0.123,103470.0,103460.0,5.9e-07]
[1737205136334,0.480255,103460.0,103450.0,0.31328667]
[1737205136573,0.75393457,103460.0,103450.0,0.29200379]
[1737205136751,1.270065,103450.0,103440.0,0.07476417]
[1737205136959,0.378583,103430.0,103420.0,0.00089901]
[1737205137271,0.48398381,103430.0,103420.0,0.00089901]
[1737205137435,0.63025163,103430.0,103420.0,0.00089901]
[1737205137640,0.62769094,103430.0,103420.0,0.00089901]
[1737205137884,0.72769094,103430.0,103420.0,0.00089901]
[1737205138113,0.72769094,103430.0,103420.0,0.00140424]
[1737205138973,0.94371682,103430.0,103420.0,0.00140424]
[1737205140034,1.11636189,103430.0,103420.0,0.00140424]
[1737205140244,1.11636189,103430.0,103420.0,0.00117554]
[1737205141167,1.12605241,103430.0,103420.0,0.00117554]
[1737205141362,1.25543253,103430.0,103420.0,0.00117554]
[1737205142344,1.1256068,103430.0,103420.0,0.00117554]
[1737205143206,0.78830599,103430.0,103420.0,0.00117554]
[1737205143446,0.74086668,103430.0,103420.0,0.00117554]
[1737205143578,0.46822161,103430.0,103420.0,0.00117554]
[1737205143783,0.56822161,103430.0,103420.0,0.00117554]
[1737205144640,0.25264134,103430.0,103420.0,0.00117554]
[1737205145634,0.24295082,103430.0,103420.0,0.00117554]
[1737205146658,0.24295082,103430.0,103420.0,0.09786854]
[1737205146860,0.24295082,103430.0,103420.0,0.00117554]
[1737205147477,0.09758222,103430.0,103420.0,0.00117554]
[1737205147685,0.00089922,103430.0,103420.0,0.17436854]
[1737205148976,0.10089922,103430.0,103420.0,0.1753354]
[1737205149659,0.10089922,103430.0,103420.0,0.17436854]
[1737205151434,0.19758222,103430.0,103420.0,0.17436854]
[1737205153865,0.10089922,103430.0,103420.0,0.17436854]
[1737205154118,0.00089922,103430.0,103420.0,0.17436854]
[1737205154934,0.10089922,103430.0,103420.0,0.17436854]
[1737205155169,0.00089922,103430.0,103420.0,0.17436854]
[1737205155471,0.10089922,103430.0,103420.0,0.17436854]
[1737205155665,0.00089922,103430.0,103420.0,0.17436854]
[1737205156287,0.19758222,103430.0,103420.0,0.17436854]
[1737205157039,0.30535004,103430.0,103420.0,0.07767554]
[1737205157444,0.30535004,103430.0,103420.0,0.00117554]
[1737205157695,0.40535004,103430.0,103420.0,0.00117554]
[1737205158041,0.30535004,103430.0,103420.0,0.00117554]
[1737205162469,0.30535004,103430.0,103420.0,0.00419675]
[1737205166891,0.20535004,103430.0,103420.0,0.00419675]
[1737205167243,0.28605004,103430.0,103420.0,0.00419675]
[1737205167654,0.38605004,103430.0,103420.0,0.00419675]
[1737205168055,0.28605004,103430.0,103420.0,0.00419675]
[1737205168259,0.89089948,103430.0,103420.0,0.00419675]
[1737205168468,0.86933181,103430.0,103420.0,0.00419675]
[1737205169099,0.76933181,103430.0,103420.0,0.00419675]
[1737205169721,1.171357,103430.0,103420.0,0.00419675]
[1737205170367,0.97211619,103430.0,103420.0,0.00117554]
[1737205170933,1.18814207,103430.0,103420.0,0.00117554]
[1737205171136,0.1,103410.0,103400.0,0.0011278]
[1737205171402,0.30446982,103410.0,103400.0,0.00127928]
[1737205171738,0.30446982,103410.0,103400.0,0.00430116]
[1737205172609,0.41223764,103410.0,103400.0,0.00430116]
[1737205174376,0.31223764,103410.0,103400.0,0.00430116]
[1737205175767,0.52776424,103410.0,103400.0,0.00430116]
[1737205176270,0.57137948,103410.0,103400.0,0.00430116]
[1737205177451,0.53742456,103410.0,103400.0,0.00430116]
[1737205177829,0.86246537,103410.0,103400.0,0.00430116]
[1737205179062,1.16498984,103410.0,103400.0,0.00127928]
[1737205180454,0.86296465,103410.0,103400.0,0.00127928]
[1737205181569,0.90651797,103410.0,103400.0,0.00127928]
[1737205181912,0.99116539,103410.0,103400.0,0.00127928]
[1737205182763,0.90651797,103410.0,103400.0,0.00127928]
[1737205184606,1.12233982,103410.0,103400.0,0.00127928]
[1737205186849,1.03538782,103410.0,103400.0,0.00127928]
[1737205188250,1.16485443,103410.0,103400.0,0.00127928]
[1737205189353,1.09077929,103410.0,103400.0,0.00127928]
[1737205189932,0.69500823,103410.0,103400.0,0.00127928]
[1737205190131,0.76573848,103410.0,103400.0,0.00127928]
[1737205190389,0.85203268,103410.0,103400.0,0.00127928]
[1737205191831,0.63621083,103410.0,103400.0,0.00127928]
[1737205192480,0.63621083,103410.0,103400.0,0.00430151]
[1737205193204,0.46358363,103410.0,103400.0,0.00430151]
[1737205195399,0.39285338,103410.0,103400.0,0.00430151]
[1737205196197,0.46358363,103410.0,103400.0,0.00430151]
[1737205197242,0.50208363,103410.0,103400.0,0.00430151]
[1737205198048,0.67471083,103410.0,103400.0,0.00430151]
[1737205199661,0.95199245,103410.0,103400.0,0.00430151]
[1737205200549,1.06857349,103410.0,103400.0,0.00430151]
[1737205201731,0.93976468,103410.0,103400.0,0.00430151]
[1737205202072,0.69099362,103410.0,103400.0,0.00430151]
[1737205202988,0.43141442,103410.0,103400.0,0.00430151]
[1737205203122,0.50214467,103410.0,103400.0,0.00430151]
[1737205203327,0.57622515,103410.0,103400.0,0.00430151]
[1737205203933,0.96459621,103410.0,103400.0,0.00430151]
[1737205204991,0.87829153,103410.0,103400.0,0.00430151]
[1737205206183,0.87829153,103410.0,103400.0,0.00127928]
[1737205206805,0.72236072,103410.0,103400.0,0.00127928]
[1737205207413,0.72236072,103410.0,103400.0,0.17539028]
[1737205208080,0.82236072,103410.0,103400.0,0.17539028]
[1737205208284,0.72236072,103410.0,103400.0,0.17539028]
[1737205208954,0.42032412,103410.0,103400.0,0.17539028]
[1737205209171,0.52032412,103410.0,103400.0,0.17539028]
[1737205209378,0.42032412,103410.0,103400.0,0.17539028]
[1737205209585,0.32362212,103410.0,103400.0,0.17539028]
[1737205209796,0.41585163,103410.0,103400.0,0.17539028]
[1737205210002,0.51255363,103410.0,103400.0,0.17539028]
[1737205210206,0.31585163,103410.0,103400.0,0.17539028]
[1737205210616,0.51255363,103410.0,103400.0,0.17539028]
[1737205210825,0.31585163,103410.0,103400.0,0.17539028]
[1737205211028,0.52032412,103410.0,103400.0,0.17539028]
[1737205211646,0.30447249,103410.0,103400.0,0.17539028]
[1737205212368,0.30777049,103410.0,103400.0,0.17539028]
[1737205212567,0.2941651,103410.0,103400.0,0.17539028]
[1737205212774,0.3941651,103410.0,103400.0,0.17539028]
[1737205213012,0.2941651,103410.0,103400.0,0.27463109]
[1737205213340,0.18639461,103410.0,103400.0,0.27463109]
[1737205213783,0.18639461,103410.0,103400.0,0.32043109]
[1737205213912,0.28639461,103410.0,103400.0,0.32043109]
[1737205214567,0.18639461,103410.0,103400.0,0.32043109]
[1737205214795,0.3908671,103410.0,103400.0,0.12447928]
[1737205215111,0.57713759,103410.0,103400.0,0.00127928]
[1737205215313,0.6763784,103410.0,103400.0,0.00127928]
[1737205216169,1.20903202,103410.0,103400.0,0.00127928]
[1737205216372,1.20903202,103410.0,103400.0,2.8e-07]
[1737205217742,1.56243395,103410.0,103400.0,2.8e-07]
[1737205217922,1.56243395,103410.0,103380.0,0.00089859]
[1737205217923,0.320221,103390.0,103380.0,0.00085887]
[1737205218125,0.63500279,103390.0,103380.0,0.00095635]
[1737205218327,0.67350279,103390.0,103380.0,0.00095635]
[1737205218535,0.213721,103390.0,103380.0,0.00095635]
[1737205218753,0.135221,103390.0,103380.0,0.09768635]
[1737205218994,0.096721,103390.0,103380.0,0.00095635]
[1737205219192,0.30449149,103390.0,103380.0,0.00095635]
[1737205219430,0.38299149,103390.0,103380.0,0.00095635]
[1737205219562,0.196721,103390.0,103380.0,0.00397903]
[1737205219768,0.90913465,103390.0,103380.0,0.00397903]
[1737205220206,0.98763465,103390.0,103380.0,0.00397903]
[1737205220667,0.87986416,103390.0,103380.0,0.00397903]
[1737205221214,0.87986416,103390.0,103380.0,0.00095635]
[1737205221411,1.18687546,103390.0,103380.0,0.00095635]
[1737205222015,1.10049787,103390.0,103380.0,0.00095635]
[1737205222706,1.15049787,103390.0,103380.0,0.00095635]
[1737205222903,1.23137779,103390.0,103380.0,0.00095635]
[1737205223114,0.91316099,103390.0,103380.0,0.00095635]
[1737205223562,1.02093148,103390.0,103380.0,0.00095635]
[1737205225576,1.03040607,103390.0,103380.0,0.00095635]
[1737205225775,0.71392018,103390.0,103380.0,0.00095635]
[1737205226121,0.63542018,103390.0,103380.0,0.00095635]
[1737205226644,0.76489743,103390.0,103380.0,0.00095635]
[1737205230258,0.85119264,103390.0,103380.0,0.00095635]
[1737205235743,0.63524865,103390.0,103380.0,0.00095635]
[1737205237756,0.82441914,103390.0,103380.0,0.00095635]
[1737205239418,0.95406792,103390.0,103380.0,0.00095635]
[1737205239959,0.95496756,103390.0,103380.0,0.00095635]
[1737205240591,1.15420837,103390.0,103380.0,0.00095635]
[1737205243951,1.19940837,103390.0,103380.0,0.00095635]
[1737205245590,1.06993112,103390.0,103380.0,0.00095635]
[1737205247092,0.89717593,103390.0,103380.0,0.00095635]
[1737205247297,0.79717593,103390.0,103380.0,0.00095635]
[1737205248606,0.84036472,103390.0,103380.0,0.00095635]
[1737205248859,0.84031636,103390.0,103380.0,0.00095635]
[1737205253554,0.70594587,103390.0,103380.0,0.00095635]
[1737205253971,0.81371636,103390.0,103380.0,0.00095635]
[1737205255084,1.07197781,103390.0,103380.0,0.00095635]
[1737205255837,0.94262925,103390.0,103380.0,0.00095635]
[1737205256911,0.58485876,103390.0,103380.0,0.00095635]
[1737205257120,0.31315321,103390.0,103380.0,0.12975635]
[1737205257515,0.41315321,103390.0,103380.0,0.12975635]
[1737205257842,0.31315321,103390.0,103380.0,0.12975635]
[1737205258063,0.31648057,103390.0,103380.0,0.12975635]
[1737205258294,0.41320157,103390.0,103380.0,0.22648635]
[1737205258504,0.38394068,103390.0,103380.0,0.22648635]
[1737205258713,0.28394068,103390.0,103380.0,0.22648635]
[1737205259087,0.18721968,103390.0,103380.0,0.22648635]
[1737205259290,0.28394068,103390.0,103380.0,0.22648635]
[1737205259493,0.18721968,103390.0,103380.0,0.22648635]
[1737205259925,0.10089964,103390.0,103380.0,0.22648635]
[1737205260183,0.19762064,103390.0,103380.0,0.22648635]
[1737205260320,0.09762064,103390.0,103380.0,0.22648635]
[1737205260905,0.00089964,103390.0,103380.0,0.22648635]
[1737205261105,0.09762064,103390.0,103380.0,0.22648635]
[1737205261371,0.10089964,103390.0,103380.0,0.22648635]
[1737205262005,0.18721968,103390.0,103380.0,0.22648635]
[1737205262412,0.08721968,103390.0,103380.0,0.22648635]
[1737205262619,0.18394068,103390.0,103380.0,0.23614696]
[1737205263121,0.18394068,103390.0,103380.0,0.25535224]
[1737205263356,0.18394068,103390.0,103380.0,0.14896163]
[1737205263484,0.18394068,103390.0,103380.0,0.24569163]
[1737205264104,0.18394068,103390.0,103380.0,0.14896163]
[1737205264567,0.39171117,103390.0,103380.0,0.00095635]
[1737205266088,0.90941224,103390.0,103380.0,0.00095635]
[1737205266290,1.00865305,103390.0,103380.0,0.00095635]
[1737205266472,0.99015305,103390.0,103380.0,0.00095635]
[1737205267073,0.77435295,103390.0,103380.0,0.00095635]
[1737205269236,0.81285295,103390.0,103380.0,0.00095635]
[1737205271429,0.82273487,103390.0,103380.0,0.00095635]
[1737205271820,0.52434165,103390.0,103380.0,0.00095635]
[1737205272296,0.62434165,103390.0,103380.0,0.09768635]
[1737205272608,0.42762065,103390.0,103380.0,0.14668635]
[1737205272759,0.52434165,103390.0,103380.0,0.14668635]
[1737205272961,0.42762065,103390.0,103380.0,0.14668635]
[1737205273143,0.65396507,103390.0,103380.0,0.14668635]
[1737205273542,0.75396507,103390.0,103380.0,0.04995635]
[1737205273751,0.75396507,103390.0,103380.0,0.14668635]
[1737205274244,0.45215627,103390.0,103380.0,0.14668635]
[1737205279289,0.45215627,103390.0,103380.0,0.04995635]
[1737205279917,0.45215627,103390.0,103380.0,0.14668635]
[1737205282039,0.32253285,103390.0,103380.0,0.14668635]
[1737205286700,0.32253285,103390.0,103380.0,0.09768635]
[1737205287463,0.32253285,103390.0,103380.0,0.00095635]
[1737205287668,0.32253285,103390.0,103380.0,0.09768635]
[1737205289086,0.43030334,103390.0,103380.0,0.09768635]
[1737205289714,0.55992676,103390.0,103380.0,0.09768635]
[1737205290276,0.64232676,103390.0,103380.0,0.00095635]
[1737205290482,0.74156757,103390.0,103380.0,0.00095635]
[1737205291401,0.63379708,103390.0,103380.0,0.00095635]
[1737205291600,0.53455627,103390.0,103380.0,0.00095635]
[1737205292440,0.92277728,103390.0,103380.0,0.00095635]
[1737205292665,1.03054777,103390.0,103380.0,0.00095635]
[1737205296295,1.03054777,103390.0,103380.0,0.09768635]
[1737205296502,1.03054777,103390.0,103380.0,0.00095635]
[1737205296703,0.94413556,103390.0,103380.0,0.00095635]
[1737205298479,0.94413556,103390.0,103380.0,0.09768635]
[1737205298711,0.94413556,103390.0,103380.0,0.00095635]
[1737205299627,0.81451214,103390.0,103380.0,0.00095635]
[1737205300778,0.81451214,103390.0,103380.0,0.09768635]
[1737205301164,0.81451214,103390.0,103380.0,0.00095635]
[1737205301363,0.81451214,103390.0,103380.0,0.09768635]
[1737205301719,0.81451214,103390.0,103380.0,0.00095635]
[1737205302156,0.64187206,103390.0,103380.0,0.00095635]
[1737205303515,1.00024565,103390.0,103380.0,0.00095635]
[1737205303720,1.04674565,103390.0,103380.0,0.00095635]
[1737205305041,0.94674565,103390.0,103380.0,0.00095635]
[1737205307595,1.21974565,103390.0,103380.0,0.00095635]
[1737205307804,1.32751614,103390.0,103380.0,0.00095635]
[1737205309465,1.69019893,103390.0,103380.0,0.00095635]
[1737205309705,1.59095812,103390.0,103380.0,0.00095635]
[1737205310693,1.04432681,103390.0,103380.0,0.00095635]
[1737205311874,1.05044681,103390.0,103380.0,0.00095635]
[1737205312029,1.49707812,103390.0,103380.0,0.00095635]
[1737205312209,1.51611083,103390.0,103380.0,0.00095635]
[1737205312413,1.57301204,103390.0,103380.0,0.00095635]
[1737205313893,1.5827093,103390.0,103380.0,0.00095635]
[1737205314484,1.52580809,103390.0,103380.0,0.00095635]
[1737205319930,1.29938941,103390.0,103380.0,0.00095635]
[1737205320126,1.33788941,103390.0,103380.0,0.00095635]
[1737205320792,1.31108621,103390.0,103380.0,0.00095635]
[1737205321352,1.05237358,103390.0,103380.0,0.00095635]
[1737205321768,1.00587358,103390.0,103380.0,0.00095635]
[1737205321992,0.89005632,103390.0,103380.0,0.00095635]
[1737205322326,0.63465632,103390.0,103380.0,0.00095635]
[1737205322735,0.24389113,103390.0,103380.0,0.00095635]
[1737205322886,0.03939964,103390.0,103380.0,0.17588635]
[1737205323071,0.13939964,103390.0,103380.0,0.17588635]
[1737205323473,0.23612064,103390.0,103380.0,0.17588635]
[1737205323990,0.13939964,103390.0,103380.0,0.17588635]
[1737205324302,0.52753449,103390.0,103380.0,0.17588635]
[1737205325239,0.48903449,103390.0,103380.0,0.32369446]
[1737205325420,0.31653011,103390.0,103380.0,0.32272716]
[1737205326411,0.10089964,103390.0,103380.0,0.32272716]
[1737205326980,0.30539113,103390.0,103380.0,0.12675635]
[1737205327174,0.20539113,103390.0,103380.0,0.12675635]
[1737205327615,0.20539113,103390.0,103380.0,0.07915635]
[1737205327772,0.29164332,103390.0,103380.0,0.07915635]
[1737205327979,0.29164332,103390.0,103380.0,0.00095635]
[1737205328785,0.31653011,103390.0,103380.0,0.09768635]
[1737205329177,0.31653011,103390.0,103380.0,0.17498635]
[1737205329374,0.18715183,103390.0,103380.0,0.17498635]
[1737205329598,0.08715183,103390.0,103380.0,0.17498635]
[1737205329803,0.10089964,103390.0,103380.0,0.17498635]
[1737205334164,0.10089964,103390.0,103380.0,0.27422716]
[1737205334585,0.00089964,103390.0,103380.0,0.27422716]
[1737205334821,0.10089964,103390.0,103380.0,0.27422716]
[1737205335854,0.10089964,103390.0,103380.0,0.17498635]
[1737205337471,0.19762064,103390.0,103380.0,0.17498635]
[1737205337703,0.30539113,103390.0,103380.0,0.00095635]
[1737205340498,0.30539113,103390.0,103380.0,0.09768635]
[1737205341075,0.30539113,103390.0,103380.0,0.00095635]
[1737205343740,0.48013194,103390.0,103380.0,0.00095635]
[1737205344761,0.79576241,103390.0,103380.0,0.00095635]
[1737205345815,0.9682668,103390.0,103380.0,0.00095635]
[1737205350119,1.09759266,103390.0,103380.0,0.00095635]
[1737205351999,0.71508136,103390.0,103380.0,0.09768635]